[Event "Live Chess"]
[Site "Chess.com"]
[Date "2023.05.21"]
[Round "-"]
[White "SavagePawn7"]
[Black "smoggyrabbit"]
[Result "0-1"]
[WhiteElo "788"]
[BlackElo "1739"]
[TimeControl "300"]
[EndTime "22:51:49 PDT"]
[Termination "smoggyrabbit won on time"]

1. e4 {[%clk 0:04:51.4]} 1... e6 {[%clk 0:04:59]} 2. d4 {[%clk 0:04:48.7]} 2...
d5 {[%clk 0:04:57.7]} 3. c4 {[%clk 0:04:47.3]} 3... c5 {[%clk 0:04:41.5]} 4.
dxc5 {[%clk 0:04:38.9]} 4... Bxc5 {[%clk 0:04:38.7]} 5. cxd5 {[%clk 0:04:34.8]}
5... exd5 {[%clk 0:04:34.9]} 6. exd5 {[%clk 0:04:33.3]} 6... Nf6 {[%clk
0:04:27.9]} 7. Nc3 {[%clk 0:04:31.2]} 7... O-O {[%clk 0:04:26]} 8. Nf3 {[%clk
0:04:20.6]} 8... b6 {[%clk 0:04:09.2]} 9. Be2 {[%clk 0:04:18.1]} 9... Bb7 {[%clk
0:04:08.2]} 10. O-O {[%clk 0:03:58.3]} 10... Nxd5 {[%clk 0:04:03.2]} 11. Nxd5
{[%clk 0:03:54.4]} 11... Qxd5 {[%clk 0:03:33.6]} 12. Qxd5 {[%clk 0:03:47.6]}
12... Bxd5 {[%clk 0:03:33.5]} 13. Rd1 {[%clk 0:03:38.6]} 13... Bc6 {[%clk
0:03:23]} 14. b3 {[%clk 0:03:15.3]} 14... Re8 {[%clk 0:03:09.2]} 15. Bc4 {[%clk
0:03:05]} 15... Bxf3 {[%clk 0:02:39.3]} 16. gxf3 {[%clk 0:03:01.4]} 16... Nc6
{[%clk 0:02:28.5]} 17. Bb2 {[%clk 0:02:54]} 17... Rad8 {[%clk 0:01:45.9]} 18.
Rxd8 {[%clk 0:02:48.5]} 18... Rxd8 {[%clk 0:01:45.8]} 19. Re1 {[%clk 0:02:37]}
19... h6 {[%clk 0:01:32.1]} 20. Kg2 {[%clk 0:02:18.8]} 20... Rd2 {[%clk
0:00:47.3]} 21. Re2 {[%clk 0:02:06.8]} 21... Rxe2 {[%clk 0:00:45]} 22. Bxe2
{[%clk 0:02:04.9]} 22... Nd4 {[%clk 0:00:42.7]} 23. Bc4 {[%clk 0:01:52.6]} 23...
Kf8 {[%clk 0:00:41]} 24. Bc1 {[%clk 0:01:50.8]} 24... Ke7 {[%clk 0:00:35.8]} 25.
Bf4 {[%clk 0:01:47.1]} 25... Ne6 {[%clk 0:00:33.2]} 26. Bb8 {[%clk 0:01:43.2]}
26... a5 {[%clk 0:00:30.5]} 27. Be5 {[%clk 0:01:36.1]} 27... f6 {[%clk
0:00:27.6]} 28. Bc3 {[%clk 0:01:32.3]} 28... Kd6 {[%clk 0:00:22.9]} 29. Bb2
{[%clk 0:01:29.1]} 29... Nf4+ {[%clk 0:00:21]} 30. Kg3 {[%clk 0:01:27.8]} 30...
Nd5 {[%clk 0:00:20.1]} 31. Bc1 {[%clk 0:01:20.9]} 31... Kc6 {[%clk 0:00:19.2]}
32. Bd2 {[%clk 0:01:18.9]} 32... b5 {[%clk 0:00:17.9]} 33. Be2 {[%clk
0:01:14.5]} 33... b4 {[%clk 0:00:16.5]} 34. Bc1 {[%clk 0:01:11.7]} 34... Nc3
{[%clk 0:00:15.8]} 35. Bc4 {[%clk 0:01:05.8]} 35... Nxa2 {[%clk 0:00:14.9]} 36.
Bd2 {[%clk 0:01:00.3]} 36... Nc3 {[%clk 0:00:14.1]} 37. Bxc3 {[%clk 0:00:58.9]}
37... bxc3 {[%clk 0:00:14]} 38. Bd3 {[%clk 0:00:52.6]} 38... Kd5 {[%clk
0:00:13.1]} 39. Kf4 {[%clk 0:00:49.8]} 39... Kd4 {[%clk 0:00:12.4]} 40. Bc2
{[%clk 0:00:48.1]} 40... Kd5 {[%clk 0:00:11.2]} 41. Kg3 {[%clk 0:00:44.1]} 41...
Bd4 {[%clk 0:00:10.1]} 42. Kg4 {[%clk 0:00:39.9]} 42... Kc5 {[%clk 0:00:09.5]}
43. f4 {[%clk 0:00:38.1]} 43... Bxf2 {[%clk 0:00:08.4]} 44. Kf3 {[%clk
0:00:36.3]} 44... Bd4 {[%clk 0:00:07.5]} 45. Kg4 {[%clk 0:00:34.8]} 45... Kb4
{[%clk 0:00:06.7]} 46. f5 {[%clk 0:00:32.6]} 46... Ka3 {[%clk 0:00:05.8]} 47.
Kf4 {[%clk 0:00:31.2]} 47... Kb2 {[%clk 0:00:05.1]} 48. Bd3 {[%clk 0:00:29.1]}
48... c2 {[%clk 0:00:04.5]} 49. Bxc2 {[%clk 0:00:27.8]} 49... Kxc2 {[%clk
0:00:04.4]} 50. Ke4 {[%clk 0:00:24.6]} 50... Kxb3 {[%clk 0:00:04.3]} 51. Kf4
{[%clk 0:00:22.5]} 51... a4 {[%clk 0:00:04.2]} 52. Ke4 {[%clk 0:00:21.3]} 52...
a3 {[%clk 0:00:04.1]} 53. Kf4 {[%clk 0:00:20.2]} 53... a2 {[%clk 0:00:04]} 54.
Ke4 {[%clk 0:00:19]} 54... a1=Q {[%clk 0:00:03.9]} 55. Kd5 {[%clk 0:00:14.6]}
55... Qd1 {[%clk 0:00:03.8]} 56. Ke6 {[%clk 0:00:11.3]} 56... Qf3 {[%clk
0:00:03.7]} 57. Kf7 {[%clk 0:00:09.1]} 57... Qe4 {[%clk 0:00:03.4]} 58. Kg6
{[%clk 0:00:07.2]} 58... Kc4 {[%clk 0:00:03.3]} 59. Kh7 {[%clk 0:00:05.1]} 59...
Kd5 {[%clk 0:00:03.2]} 60. Kg6 {[%clk 0:00:03.8]} 60... Ke5 {[%clk 0:00:02.4]}
61. Kf7 {[%clk 0:00:02.3]} 61... Qxf5 {[%clk 0:00:01.7]} 62. Kg8 {[%clk
0:00:01]} 62... Qg6 {[%clk 0:00:00.4]} 0-1

[Event "Live Chess"]
[Site "Chess.com"]
[Date "2023.05.21"]
[Round "-"]
[White "chessfiction"]
[Black "Jo1ts"]
[Result "1-0"]
[WhiteElo "2348"]
[BlackElo "822"]
[TimeControl "300"]
[EndTime "22:52:09 PDT"]
[Termination "chessfiction won by resignation"]

1. e4 {[%clk 0:04:59.3]} 1... d5 {[%clk 0:04:57.8]} 2. d4 {[%clk 0:04:57.7]}
2... dxe4 {[%clk 0:04:54.6]} 3. f3 {[%clk 0:04:56.9]} 3... exf3 {[%clk
0:04:52.8]} 4. Nxf3 {[%clk 0:04:56.8]} 4... Nf6 {[%clk 0:04:48.2]} 5. Bc4 {[%clk
0:04:56.3]} 5... Bg4 {[%clk 0:04:42.6]} 6. Ne5 {[%clk 0:04:54.7]} 6... Be6
{[%clk 0:04:28.6]} 7. Bxe6 {[%clk 0:04:51.6]} 7... fxe6 {[%clk 0:04:26.7]} 8.
O-O {[%clk 0:04:51.5]} 8... Qd5 {[%clk 0:04:15.2]} 9. Nc3 {[%clk 0:04:41.7]}
9... Qe4 {[%clk 0:04:06.8]} 10. Nxe4 {[%clk 0:04:40.4]} 10... Nxe4 {[%clk
0:04:02.2]} 11. Qh5+ {[%clk 0:04:37.2]} 1-0

[Event "Live Chess"]
[Site "Chess.com"]
[Date "2023.05.21"]
[Round "-"]
[White "YrrriKharkiv"]
[Black "KeithArkell"]
[Result "0-1"]
[WhiteElo "2014"]
[BlackElo "2561"]
[TimeControl "300"]
[EndTime "22:52:19 PDT"]
[Termination "KeithArkell won by resignation"]

1. d4 {[%clk 0:04:52.8]} 1... e6 {[%clk 0:04:48.2]} 2. Nf3 {[%clk 0:04:51.1]}
2... Nf6 {[%clk 0:04:47]} 3. c4 {[%clk 0:04:48.1]} 3... Bb4+ {[%clk 0:04:45.1]}
4. Bd2 {[%clk 0:04:46.3]} 4... Bxd2+ {[%clk 0:04:43.9]} 5. Qxd2 {[%clk
0:04:45.4]} 5... d6 {[%clk 0:04:43.8]} 6. Nc3 {[%clk 0:04:43.9]} 6... Qe7 {[%clk
0:04:43.7]} 7. e4 {[%clk 0:04:42.5]} 7... e5 {[%clk 0:04:41]} 8. d5 {[%clk
0:04:40.4]} 8... Bg4 {[%clk 0:04:40]} 9. Ng1 {[%clk 0:04:36.6]} 9... a5 {[%clk
0:04:38.3]} 10. Be2 {[%clk 0:04:35.3]} 10... Na6 {[%clk 0:04:34]} 11. Bxg4
{[%clk 0:04:26.7]} 11... Nxg4 {[%clk 0:04:32.2]} 12. Nf3 {[%clk 0:04:16]} 12...
Nc5 {[%clk 0:04:30.1]} 13. Rb1 {[%clk 0:04:01.8]} 13... O-O {[%clk 0:04:27.7]}
14. b3 {[%clk 0:03:59.3]} 14... f5 {[%clk 0:04:23.8]} 15. exf5 {[%clk 0:03:58]}
15... Rxf5 {[%clk 0:04:22.5]} 16. O-O {[%clk 0:03:53.6]} 16... Raf8 {[%clk
0:04:20.3]} 17. b4 {[%clk 0:03:36.9]} 17... axb4 {[%clk 0:04:17.7]} 18. Rxb4
{[%clk 0:03:33.3]} 18... e4 {[%clk 0:04:15.8]} 19. Nd4 {[%clk 0:03:27.9]} 19...
Rxf2 {[%clk 0:04:13.4]} 20. Rxf2 {[%clk 0:03:25.7]} 20... Rxf2 {[%clk
0:04:12.3]} 21. Qd1 {[%clk 0:03:01.4]} 21... Rxg2+ {[%clk 0:04:05.2]} 0-1

[Event "Live Chess"]
[Site "Chess.com"]
[Date "2023.05.21"]
[Round "-"]
[White "Singapourfeuj"]
[Black "JamesWallman"]
[Result "1-0"]
[WhiteElo "2210"]
[BlackElo "758"]
[TimeControl "300"]
[EndTime "22:52:27 PDT"]
[Termination "Singapourfeuj won by checkmate"]

1. d4 {[%clk 0:04:53.8]} 1... d5 {[%clk 0:04:55.2]} 2. c4 {[%clk 0:04:52.5]}
2... e6 {[%clk 0:04:52.6]} 3. Nf3 {[%clk 0:04:51.7]} 3... Nf6 {[%clk 0:04:50.1]}
4. Nc3 {[%clk 0:04:50.7]} 4... Be7 {[%clk 0:04:47.4]} 5. cxd5 {[%clk 0:04:49.8]}
5... exd5 {[%clk 0:04:43.7]} 6. Bg5 {[%clk 0:04:48.6]} 6... Bf5 {[%clk
0:04:36.6]} 7. e3 {[%clk 0:04:46.6]} 7... Nc6 {[%clk 0:04:32.5]} 8. a3 {[%clk
0:04:44.2]} 8... Qd7 {[%clk 0:04:26.8]} 9. Qb3 {[%clk 0:04:42.5]} 9... O-O-O
{[%clk 0:04:19.2]} 10. Bb5 {[%clk 0:04:38.1]} 10... h6 {[%clk 0:04:09.7]} 11.
Ne5 {[%clk 0:04:34.5]} 11... Qe8 {[%clk 0:03:57.5]} 12. Bf4 {[%clk 0:04:29.2]}
12... a6 {[%clk 0:03:50.2]} 13. Bxc6 {[%clk 0:04:28]} 13... bxc6 {[%clk
0:03:44.5]} 14. Rc1 {[%clk 0:04:26.1]} 14... Bd6 {[%clk 0:03:32.6]} 15. Na4
{[%clk 0:04:21.4]} 15... Bxe5 {[%clk 0:03:25.7]} 16. Nc5 {[%clk 0:04:19.2]}
16... Bxd4 {[%clk 0:03:02.1]} 17. Qb7# {[%clk 0:04:17.4]} 1-0

[Event "Live Chess"]
[Site "Chess.com"]
[Date "2023.05.21"]
[Round "-"]
[White "tpm07"]
[Black "Rusty_Bridges"]
[Result "0-1"]
[WhiteElo "1914"]
[BlackElo "1484"]
[TimeControl "300"]
[EndTime "22:52:28 PDT"]
[Termination "Rusty_Bridges won by resignation"]

1. e4 {[%clk 0:04:57.7]} 1... d6 {[%clk 0:04:58]} 2. d4 {[%clk 0:04:55.9]} 2...
Nf6 {[%clk 0:04:56.5]} 3. Nc3 {[%clk 0:04:55.4]} 3... Nbd7 {[%clk 0:04:55]} 4.
Be3 {[%clk 0:04:53.2]} 4... e5 {[%clk 0:04:54.2]} 5. Nf3 {[%clk 0:04:51.9]} 5...
h6 {[%clk 0:04:52.5]} 6. h3 {[%clk 0:04:50]} 6... c6 {[%clk 0:04:51.7]} 7. a4
{[%clk 0:04:48.5]} 7... Be7 {[%clk 0:04:50.5]} 8. Be2 {[%clk 0:04:46.7]} 8...
Qc7 {[%clk 0:04:49.5]} 9. O-O {[%clk 0:04:45.5]} 9... g5 {[%clk 0:04:47.6]} 10.
Nh2 {[%clk 0:04:42.6]} 10... Nf8 {[%clk 0:04:46.7]} 11. Bg4 {[%clk 0:04:40.3]}
11... Ng6 {[%clk 0:04:40.9]} 12. Bxc8 {[%clk 0:04:38.9]} 12... Qxc8 {[%clk
0:04:36.3]} 13. Ng4 {[%clk 0:04:36.3]} 13... Nf4 {[%clk 0:04:33]} 14. Bxf4
{[%clk 0:04:31.2]} 14... gxf4 {[%clk 0:04:31.5]} 15. dxe5 {[%clk 0:04:27.9]}
15... Nxg4 {[%clk 0:04:27.3]} 16. Qxg4 {[%clk 0:04:25.3]} 16... Qxg4 {[%clk
0:04:23.9]} 17. hxg4 {[%clk 0:04:24.4]} 17... dxe5 {[%clk 0:04:20.4]} 18. Rad1
{[%clk 0:04:11.3]} 18... Rd8 {[%clk 0:04:12.7]} 19. Rxd8+ {[%clk 0:04:08.3]}
19... Kxd8 {[%clk 0:04:08.9]} 20. Rd1+ {[%clk 0:04:06.4]} 20... Kc7 {[%clk
0:04:07.4]} 21. Ne2 {[%clk 0:04:05.2]} 21... Rd8 {[%clk 0:03:57.7]} 22. Rxd8
{[%clk 0:04:02.4]} 22... Kxd8 {[%clk 0:03:54.3]} 23. f3 {[%clk 0:04:00.3]} 23...
Kd7 {[%clk 0:03:41.5]} 24. Kf1 {[%clk 0:03:58.4]} 24... b5 {[%clk 0:03:37.3]}
25. Nc3 {[%clk 0:03:49.6]} 25... a6 {[%clk 0:03:31.6]} 26. Ke2 {[%clk
0:03:44.9]} 26... Bb4 {[%clk 0:03:22.6]} 27. Kd3 {[%clk 0:03:43.1]} 27... Bxc3
{[%clk 0:03:08.3]} 28. Kxc3 {[%clk 0:03:40.7]} 28... Kd6 {[%clk 0:03:06.2]} 29.
Kb4 {[%clk 0:03:32.8]} 29... bxa4 {[%clk 0:03:00.4]} 30. Kxa4 {[%clk 0:03:26.2]}
30... Kc5 {[%clk 0:02:42.9]} 31. Ka5 {[%clk 0:03:20.4]} 31... Kd4 {[%clk
0:02:41.9]} 32. Kxa6 {[%clk 0:03:19.7]} 32... Ke3 {[%clk 0:02:41.2]} 33. Kb6
{[%clk 0:03:19.3]} 33... Kf2 {[%clk 0:02:40.5]} 34. Kxc6 {[%clk 0:03:18.7]}
34... Kxg2 {[%clk 0:02:40]} 35. b4 {[%clk 0:03:17.7]} 35... Kxf3 {[%clk
0:02:39.2]} 36. b5 {[%clk 0:03:16.7]} 36... Kxg4 {[%clk 0:02:36.6]} 37. b6
{[%clk 0:03:16.1]} 37... f3 {[%clk 0:02:36.3]} 38. b7 {[%clk 0:03:13.7]} 38...
f2 {[%clk 0:02:35.9]} 39. b8=Q {[%clk 0:03:12.6]} 39... f1=Q {[%clk 0:02:34]}
40. Qg8+ {[%clk 0:03:10.7]} 40... Kf3 {[%clk 0:02:22.9]} 41. Qxf7+ {[%clk
0:03:08.7]} 41... Ke2 {[%clk 0:02:21.9]} 42. Qh5+ {[%clk 0:02:40.1]} 42... Qf3
{[%clk 0:02:13.6]} 43. Qh2+ {[%clk 0:02:32.1]} 43... Ke3 {[%clk 0:02:07.7]} 44.
Qxh6+ {[%clk 0:02:23.7]} 44... Kxe4 {[%clk 0:02:05.5]} 45. c4 {[%clk 0:01:59.5]}
45... Kd4+ {[%clk 0:02:00.6]} 46. Kd7 {[%clk 0:01:47.7]} 46... Qb7+ {[%clk
0:01:45.3]} 47. Ke8 {[%clk 0:01:42.5]} 47... e4 {[%clk 0:01:28.7]} 48. Qe6
{[%clk 0:01:13.3]} 48... e3 {[%clk 0:01:09.3]} 49. c5 {[%clk 0:01:08.3]} 49...
Qd5 {[%clk 0:00:56.2]} 50. Qd6 {[%clk 0:00:24.5]} 50... e2 {[%clk 0:00:51.3]}
51. Qg3 {[%clk 0:00:14.8]} 51... Qe5+ {[%clk 0:00:44.5]} 0-1

[Event "Live Chess"]
[Site "Chess.com"]
[Date "2023.05.21"]
[Round "-"]
[White "mirandaasilva"]
[Black "martinsmartin63"]
[Result "1-0"]
[WhiteElo "1654"]
[BlackElo "762"]
[TimeControl "300"]
[EndTime "22:52:34 PDT"]
[Termination "mirandaasilva won by resignation"]

1. g3 {[%clk 0:04:57.2]} 1... d5 {[%clk 0:04:55.4]} 2. Bg2 {[%clk 0:04:57.1]}
2... Nf6 {[%clk 0:04:45.3]} 3. Nf3 {[%clk 0:04:55.7]} 3... Nc6 {[%clk
0:04:39.1]} 4. O-O {[%clk 0:04:55.6]} 4... e5 {[%clk 0:04:35.7]} 5. d3 {[%clk
0:04:52]} 5... e4 {[%clk 0:04:32.7]} 6. Re1 {[%clk 0:04:51.9]} 6... exf3 {[%clk
0:04:30.1]} 7. exf3+ {[%clk 0:04:51.8]} 7... Be7 {[%clk 0:04:19.2]} 8. Bh6
{[%clk 0:04:51.7]} 8... gxh6 {[%clk 0:04:14.8]} 9. Nc3 {[%clk 0:04:49.1]} 9...
d4 {[%clk 0:04:09.7]} 10. f4 {[%clk 0:04:49]} 10... Nb4 {[%clk 0:04:04.9]} 11.
Bc6+ {[%clk 0:04:48.9]} 11... Nxc6 {[%clk 0:03:59.9]} 12. Qe2 {[%clk 0:04:48.8]}
12... dxc3 {[%clk 0:03:53.3]} 13. d4 {[%clk 0:04:48.7]} 13... Nxd4 {[%clk
0:03:49.3]} 14. Qc4 {[%clk 0:04:47.1]} 14... Nf3+ {[%clk 0:03:40.7]} 15. Kg2
{[%clk 0:04:44]} 15... Nxe1+ {[%clk 0:03:38.5]} 16. Rxe1 {[%clk 0:04:43.9]}
16... Be6 {[%clk 0:03:30.9]} 17. Qxc3 {[%clk 0:04:43.8]} 17... Qd5+ {[%clk
0:03:19.6]} 18. Kg1 {[%clk 0:04:42.4]} 18... Qd6 {[%clk 0:03:16.9]} 19. f5
{[%clk 0:04:42.3]} 19... Bd7 {[%clk 0:03:10.9]} 20. Qe3 {[%clk 0:04:35.4]} 20...
O-O {[%clk 0:03:03]} 21. Qxh6 {[%clk 0:04:32]} 21... Bxf5 {[%clk 0:02:57]} 22.
Qg5+ {[%clk 0:04:30]} 22... Kh8 {[%clk 0:02:51.7]} 23. Qxf5 {[%clk 0:04:28.1]}
23... Qd2 {[%clk 0:02:35.4]} 24. Rxe7 {[%clk 0:04:23.8]} 24... Qd1+ {[%clk
0:02:32.5]} 25. Kg2 {[%clk 0:04:20.6]} 25... Qd5+ {[%clk 0:02:29.2]} 26. Qf3
{[%clk 0:04:12.6]} 26... Qxf3+ {[%clk 0:02:24.6]} 27. Kxf3 {[%clk 0:04:12.5]}
27... Rad8 {[%clk 0:02:19.3]} 28. Rxc7 {[%clk 0:04:10.9]} 28... Rd2 {[%clk
0:02:15.4]} 29. b4 {[%clk 0:04:07.4]} 29... Rxc2 {[%clk 0:02:12]} 30. Rxc2
{[%clk 0:04:04.6]} 30... Nd5 {[%clk 0:02:06.9]} 31. a3 {[%clk 0:04:00.6]} 31...
b5 {[%clk 0:02:03]} 32. Rc5 {[%clk 0:03:59.6]} 32... Rd8 {[%clk 0:01:55.7]} 33.
Rxb5 {[%clk 0:03:53.2]} 33... a6 {[%clk 0:01:40.7]} 34. Rb7 {[%clk 0:03:42.1]}
34... Nc3 {[%clk 0:01:29.3]} 35. Rxf7 {[%clk 0:03:35.1]} 35... Rd3+ {[%clk
0:01:20.2]} 36. Kg2 {[%clk 0:03:33.9]} 36... Ne4 {[%clk 0:01:10.5]} 37. a4
{[%clk 0:03:29.8]} 37... Rb3 {[%clk 0:01:06.4]} 38. Ra7 {[%clk 0:02:57.4]} 38...
Rxb4 {[%clk 0:01:02.5]} 39. Rxa6 {[%clk 0:02:56.3]} 39... Nc3 {[%clk 0:00:54.8]}
40. a5 {[%clk 0:02:53]} 40... Ra4 {[%clk 0:00:50]} 41. Ra8+ {[%clk 0:02:51.1]}
41... Kg7 {[%clk 0:00:43.5]} 42. a6 {[%clk 0:02:51]} 42... Nb5 {[%clk
0:00:36.5]} 43. Rb8 {[%clk 0:02:45.9]} 43... Rxa6 {[%clk 0:00:31.9]} 44. Rxb5
{[%clk 0:02:44.3]} 1-0

[Event "Live Chess"]
[Site "Chess.com"]
[Date "2023.05.21"]
[Round "-"]
[White "MaximKris"]
[Black "MaximKhimchenko"]
[Result "1-0"]
[WhiteElo "1843"]
[BlackElo "1394"]
[TimeControl "300"]
[EndTime "22:53:05 PDT"]
[Termination "MaximKris won by resignation"]

1. e4 {[%clk 0:04:58.2]} 1... c5 {[%clk 0:04:52.7]} 2. Nf3 {[%clk 0:04:56.6]}
2... Nc6 {[%clk 0:04:51.4]} 3. Bb5 {[%clk 0:04:53.8]} 3... d6 {[%clk 0:04:46.4]}
4. O-O {[%clk 0:04:51.6]} 4... Bd7 {[%clk 0:04:44.9]} 5. d4 {[%clk 0:04:49.3]}
5... cxd4 {[%clk 0:04:43.4]} 6. Nxd4 {[%clk 0:04:49.2]} 6... Ne5 {[%clk
0:04:41.9]} 7. Bxd7+ {[%clk 0:04:49.1]} 7... Qxd7 {[%clk 0:04:40.9]} 8. Nc3
{[%clk 0:04:45.2]} 8... Nf6 {[%clk 0:04:39.3]} 9. Bf4 {[%clk 0:04:42.3]} 9... g6
{[%clk 0:04:35.5]} 10. Bxe5 {[%clk 0:04:40.6]} 10... dxe5 {[%clk 0:04:35.4]} 11.
Ndb5 {[%clk 0:04:38.8]} 11... Qxd1 {[%clk 0:04:33.8]} 12. Raxd1 {[%clk
0:04:38.7]} 12... Rc8 {[%clk 0:04:31.9]} 13. Nxa7 {[%clk 0:04:36.7]} 13... Ra8
{[%clk 0:04:27.9]} 14. Nab5 {[%clk 0:04:34.8]} 14... Rc8 {[%clk 0:04:26.8]} 15.
Na7 {[%clk 0:04:34]} 15... Ra8 {[%clk 0:04:25.4]} 16. Ncb5 {[%clk 0:04:33.6]}
1-0

[Event "Live Chess"]
[Site "Chess.com"]
[Date "2023.05.21"]
[Round "-"]
[White "Hacker_2009"]
[Black "Mugzwang"]
[Result "1-0"]
[WhiteElo "1942"]
[BlackElo "1291"]
[TimeControl "300"]
[EndTime "22:53:12 PDT"]
[Termination "Hacker_2009 won by resignation"]

1. d4 {[%clk 0:04:57.7]} 1... d5 {[%clk 0:04:53.6]} 2. Nf3 {[%clk 0:04:56.1]}
2... Nf6 {[%clk 0:04:51.6]} 3. e3 {[%clk 0:04:54.5]} 3... c5 {[%clk 0:04:48.8]}
4. c4 {[%clk 0:04:52.9]} 4... cxd4 {[%clk 0:04:47.2]} 5. Nxd4 {[%clk 0:04:51.3]}
5... Nc6 {[%clk 0:04:42.6]} 6. Nc3 {[%clk 0:04:49.5]} 6... Nxd4 {[%clk
0:04:39.8]} 7. Qxd4 {[%clk 0:04:48.1]} 7... Qa5 {[%clk 0:04:24.8]} 8. cxd5
{[%clk 0:04:46.1]} 8... e5 {[%clk 0:04:13.6]} 9. dxe6 {[%clk 0:04:34.3]} 9...
Bxe6 {[%clk 0:04:10.2]} 10. Bb5+ {[%clk 0:04:33.9]} 10... Bd7 {[%clk 0:04:00]}
11. Bxd7+ {[%clk 0:04:32.7]} 11... Nxd7 {[%clk 0:03:56]} 12. O-O {[%clk
0:04:31.4]} 12... Be7 {[%clk 0:03:44.2]} 13. Qxg7 {[%clk 0:04:28.7]} 13... O-O-O
{[%clk 0:03:40.7]} 14. Qxf7 {[%clk 0:04:21.4]} 14... Qg5 {[%clk 0:03:35.4]} 15.
e4 {[%clk 0:04:17.8]} 15... Qf6 {[%clk 0:03:21.2]} 16. Qc4+ {[%clk 0:04:13.9]}
16... Kb8 {[%clk 0:03:09.9]} 17. Nd5 {[%clk 0:04:13]} 17... Qe6 {[%clk
0:03:01.5]} 18. Bf4+ {[%clk 0:04:09.9]} 1-0

[Event "Live Chess"]
[Site "Chess.com"]
[Date "2023.05.21"]
[Round "-"]
[White "Nazarenko_vital"]
[Black "matt1979"]
[Result "0-1"]
[WhiteElo "1626"]
[BlackElo "1513"]
[TimeControl "300"]
[EndTime "22:53:20 PDT"]
[Termination "matt1979 won on time"]

1. e4 {[%clk 0:04:55.8]} 1... c5 {[%clk 0:04:56.5]} 2. c3 {[%clk 0:04:54.3]}
2... Nf6 {[%clk 0:04:53.1]} 3. e5 {[%clk 0:04:53]} 3... Nd5 {[%clk 0:04:52.1]}
4. d4 {[%clk 0:04:52]} 4... cxd4 {[%clk 0:04:50.2]} 5. cxd4 {[%clk 0:04:50.9]}
5... Nc6 {[%clk 0:04:49.4]} 6. Nf3 {[%clk 0:04:48.7]} 6... d6 {[%clk 0:04:47.2]}
7. Bc4 {[%clk 0:04:38.5]} 7... Nb6 {[%clk 0:04:40.2]} 8. Bb5 {[%clk 0:04:30]}
8... Bd7 {[%clk 0:04:28.5]} 9. Bxc6 {[%clk 0:04:28.6]} 9... Bxc6 {[%clk
0:04:26.3]} 10. Be3 {[%clk 0:04:23.8]} 10... e6 {[%clk 0:04:18.7]} 11. O-O
{[%clk 0:04:22.3]} 11... Be7 {[%clk 0:04:12.4]} 12. Nc3 {[%clk 0:04:15.9]} 12...
O-O {[%clk 0:04:09.3]} 13. h3 {[%clk 0:04:05]} 13... Rc8 {[%clk 0:03:49.9]} 14.
Rc1 {[%clk 0:04:02.2]} 14... Nc4 {[%clk 0:03:42]} 15. Qe2 {[%clk 0:03:41.2]}
15... Nxe3 {[%clk 0:03:39.2]} 16. fxe3 {[%clk 0:03:38.8]} 16... a6 {[%clk
0:03:19.7]} 17. Qf2 {[%clk 0:03:18.2]} 17... b5 {[%clk 0:02:40.5]} 18. exd6
{[%clk 0:03:16.5]} 18... Bxd6 {[%clk 0:02:38.1]} 19. Ne5 {[%clk 0:03:15.4]}
19... Bxe5 {[%clk 0:02:35.4]} 20. dxe5 {[%clk 0:03:14.4]} 20... Bd5 {[%clk
0:02:25.5]} 21. b3 {[%clk 0:03:00.8]} 21... Bb7 {[%clk 0:02:18.7]} 22. Ne2
{[%clk 0:02:38.5]} 22... Qg5 {[%clk 0:02:10.1]} 23. Qg3 {[%clk 0:02:00.1]} 23...
Qxg3 {[%clk 0:02:03.1]} 24. Nxg3 {[%clk 0:01:58.5]} 24... Rfd8 {[%clk
0:01:50.9]} 25. Ne2 {[%clk 0:01:31.6]} 25... Rd2 {[%clk 0:01:45]} 26. Rxc8+
{[%clk 0:01:26.8]} 26... Bxc8 {[%clk 0:01:43.9]} 27. Nc1 {[%clk 0:01:13.1]}
27... Bb7 {[%clk 0:01:40]} 28. Rf2 {[%clk 0:01:11.3]} 28... Rxf2 {[%clk
0:01:36.7]} 29. Kxf2 {[%clk 0:01:09.9]} 29... Kf8 {[%clk 0:01:35.7]} 30. Nd3
{[%clk 0:01:07.2]} 30... Ke7 {[%clk 0:01:23.2]} 31. Nc5 {[%clk 0:01:01.2]} 31...
Bc8 {[%clk 0:01:21]} 32. b4 {[%clk 0:00:56.9]} 32... f6 {[%clk 0:01:16.9]} 33.
exf6+ {[%clk 0:00:47.9]} 33... gxf6 {[%clk 0:01:15.4]} 34. g4 {[%clk 0:00:35.4]}
34... f5 {[%clk 0:01:04]} 35. g5 {[%clk 0:00:31.6]} 35... Kd6 {[%clk 0:00:59.9]}
36. h4 {[%clk 0:00:28]} 36... a5 {[%clk 0:00:54.1]} 37. a3 {[%clk 0:00:26]}
37... axb4 {[%clk 0:00:49]} 38. axb4 {[%clk 0:00:24.5]} 38... Kd5 {[%clk
0:00:46.6]} 39. h5 {[%clk 0:00:20.3]} 39... Ke5 {[%clk 0:00:28.8]} 40. Kg3
{[%clk 0:00:14.5]} 40... Kd5 {[%clk 0:00:17.6]} 41. Kf4 {[%clk 0:00:12.5]} 41...
e5+ {[%clk 0:00:16]} 42. Kf3 {[%clk 0:00:10.5]} 42... e4+ {[%clk 0:00:12.4]} 43.
Kf4 {[%clk 0:00:09.3]} 43... Be6 {[%clk 0:00:09.6]} 44. g6 {[%clk 0:00:07.8]}
44... hxg6 {[%clk 0:00:08.1]} 45. Nxe6 {[%clk 0:00:02.4]} 45... Kxe6 {[%clk
0:00:07]} 0-1